{"text_format":"3","workbook":"xlsx","n_sheets":2,"sheets":["Teste de Adequação","Perguntas"],"not_rendered":{"images":2,"defined_names":15},"read":"whole","date_system":"1900"}

{"sheet":"Teste de Adequação","index":0,"n_rows":79,"n_cols":9,"rows_kept":79,"merged":[[6,1,6,15],[7,1,7,15],[8,2,12,14],[17,3,17,6],[20,3,20,6],[23,3,23,6],[26,3,26,6],[29,3,29,6],[34,3,34,10],[37,3,37,10],[40,3,40,10],[43,3,43,10],[46,3,46,10],[49,3,49,10],[54,3,54,10],[57,3,57,10],[60,3,60,10],[75,5,75,12],[76,3,76,14]]}
[]
[]
[]
[]
[]
[]
[null,"ANEXO 2 "]
[null,"SITUAÇÃO FINANCEIRA E OBJECTIVOS DE INVESTIMENTO"]
[null,null,"A Inovadora Capital SDVM (SU), S.A enquanto agente de intermediação encarregue de recepção, transmissão e execução de ordens, de acordo com o Código de Valores Mobiliários deve assegurar-se que o serviço que pretende prestar ao Cliente se adequa ao mesmo. Para isso, deve solicitar ao Cliente informação relativa aos seus conhecimentos e experiência em matéria de investimento, para que possa avaliar que o Cliente compreende os riscos envolvidos. Por outro lado, no que concerne especificamente ao contrato de recepção, transmissão e execução de ordens, temos ainda que obter do investidor informação relativa à sua situação financeira e objectivos de investimento."]
[]
[]
[]
[]
[]
[null,null,"1) SITUAÇÃO FINANCEIRA"]
[]
[null,null,"a) Qual o escalão etário em que se inclui?"]
[]
[]
[null,null,"b) Qual é o nível dos seus rendimentos anuais regulares?"]
[]
[]
[null,null,"c) Qual é a sua principal fonte de rendimentos?"]
[]
[]
[null,null,"d) Qual é o nível total do seu património total actual?"]
[]
[]
[null,null,"e) Qual é o peso dos seus compromissos financeiros e gastos mensais face ao seu rendimento mensal?"]
[]
[]
[null,null,"2) CONHECIMENTO E EXPERIÊNCIA"]
[]
[null,null,"a) Qual o seu nível de escolaridade?"]
[]
[]
[null,null,"b) Qual a sua experiência profissional em áreas económico-financeiras ou de gestão?"]
[]
[]
[null,null,"c) Como classificaria a sua experiência e conhecimento nos mercados financeiros?"]
[]
[]
[null,null,"d) Dos seguintes produtos financeiros, quais os que já investiu pelo menos uma vez?"]
[]
[]
[null,null,"e) Quantas transacções efectua, em média, nos mercados de capitais por ano?"]
[]
[]
[null,null,"f) Qual o volume das operações com instrumentos financeiros que efectua, em média, por ano?"]
[]
[]
[null,null,"3) OBJECTIVOS DO INVESTIMENTO"]
[]
[null,null,"a) Qual o seu objectivo de investimento?"]
[]
[]
[null,null,"b) Qual o seu horizonte temporal previsto para este investimento"]
[]
[]
[null,null,"c) Refira a sua capacidade de resistência a eventuais períodos de perda de capital"]
[]
[]
[]
[{"$nulls":3},"Resultado:"]
[]
[]
[null,null,"Declaro que a informação prestada acima é verdadeira e correcta."]
[null,null,"Assumo informá-los por escrito, sempre que existir alguma alteração aos dados acima indicados"]
[]
[]
[null,null,"Assinatura (Cliente) _____________________________________________________"]
[]
[]
[null,null,"Data ____________"]
[]
[{"$nulls":5},"Inovadora Capital - Sociedade Distribuidora de Valores Mobiliários (SU), S.A"]
[{"$nulls":3},"Província de Luanda, Município de Talatona, Bairro Talatona, Rua do Comando da Policia, Edifício Talatona, 2º andar"]
[{"$nulls":8},"Distrito Urbano de Talatona  – Luanda – Angola"]
[{"$nulls":8},"Capital Social: 100.000.000 AOA – NIF: 541460048 –  CMC Nº03/SDVM/CMC/08-2023 "]

{"sheet":"Perguntas","index":1,"n_rows":99,"n_cols":15,"rows_kept":99,"hidden":true}
[]
[]
[{"$nulls":3},"MADZ Global - Sociedade Corretora de Valores Mobiliários, S. A."]
[]
[{"$nulls":3},"Resultado Final:",null,{"$f":"+O8+O41+O80","v":0}]
[]
[]
[{"$nulls":3},"1) SITUAÇÃO FINANCEIRA",{"$nulls":10},{"$f":"O10+O17+O24+O29+O35","v":0}]
[]
[{"$nulls":3},"a) Qual o escalão etário em que se inclui?",{"$nulls":10},{"$f":"+SUM(O11:O15)","v":0}]
[null,0,null,null,"Menos de 25",{"$nulls":9},{"$f":"+IF('Teste de Adequação'!$D$18=E11,Perguntas!B11,0)","v":0}]
[null,5,null,null,"Entre 25 e 34",{"$nulls":9},{"$f":"+IF('Teste de Adequação'!$D$18=E12,Perguntas!B12,0)","v":0}]
[null,10,null,null,"Entre 35 e 44",{"$nulls":9},{"$f":"+IF('Teste de Adequação'!$D$18=E13,Perguntas!B13,0)","v":0}]
[null,5,null,null,"Entre 45 e 59",{"$nulls":9},{"$f":"+IF('Teste de Adequação'!$D$18=E14,Perguntas!B14,0)","v":0}]
[null,0,null,null,"Mais de 60",{"$nulls":9},{"$f":"+IF('Teste de Adequação'!$D$18=E15,Perguntas!B15,0)","v":0}]
[]
[{"$nulls":3},"b) Qual é o nível dos seus rendimentos anuais regulares?",{"$nulls":10},{"$f":"+SUM(O18:O22)","v":0}]
[null,0,null,null,"Inferior a 2.500.000 Kwanzas",{"$nulls":9},{"$f":"+IF('Teste de Adequação'!$D$21=E18,Perguntas!B18,0)","v":0}]
[null,5,null,null,"Entre 2.500.000 e 5.000.000 Kwanzas",{"$nulls":9},{"$f":"+IF('Teste de Adequação'!$D$21=E19,Perguntas!B19,0)","v":0}]
[null,10,null,null,"Entre 5.000.000 e 10.000.000 Kwanzas",{"$nulls":9},{"$f":"+IF('Teste de Adequação'!$D$21=E20,Perguntas!B20,0)","v":0}]
[null,15,null,null,"Entre 10.000.000 e 25.000.000 Kwanzas",{"$nulls":9},{"$f":"+IF('Teste de Adequação'!$D$21=E21,Perguntas!B21,0)","v":0}]
[null,25,null,null,"Superior a 25.000.000 Kwanzas",{"$nulls":9},{"$f":"+IF('Teste de Adequação'!$D$21=E22,Perguntas!B22,0)","v":0}]
[]
[{"$nulls":3},"c) Qual é a sua principal fonte de rendimentos?",{"$nulls":10},{"$f":"+SUM(O25:O27)","v":0}]
[null,5,null,null,"Trabalho dependente",{"$nulls":9},{"$f":"+IF('Teste de Adequação'!$D$24=E25,Perguntas!B25,0)","v":0}]
[null,10,null,null,"Trabalho independente",{"$nulls":9},{"$f":"+IF('Teste de Adequação'!$D$24=E26,Perguntas!B26,0)","v":0}]
[null,0,null,null,"Rendimentos Financeiros / Prediais",{"$nulls":9},{"$f":"+IF('Teste de Adequação'!$D$24=E27,Perguntas!B27,0)","v":0}]
[]
[{"$nulls":3},"d) Qual é o nível total do seu património total actual?",{"$nulls":10},{"$f":"+SUM(O30:O33)","v":0}]
[null,0,null,null,"Inferior a 25.000.000 Kwanzas",{"$nulls":9},{"$f":"+IF('Teste de Adequação'!$D$27=E30,Perguntas!B30,0)","v":0}]
[null,5,null,null,"Entre 25.000.000 e 50.000.000 Kwanzas",{"$nulls":9},{"$f":"+IF('Teste de Adequação'!$D$27=E31,Perguntas!B31,0)","v":0}]
[null,15,null,null,"Entre 50.000.000 e 100.000.000 Kwanzas",{"$nulls":9},{"$f":"+IF('Teste de Adequação'!$D$27=E32,Perguntas!B32,0)","v":0}]
[null,25,null,null,"Superior a 100.000.000 Kwanzas",{"$nulls":9},{"$f":"+IF('Teste de Adequação'!$D$27=E33,Perguntas!B33,0)","v":0}]
[]
[{"$nulls":3},"e) Qual é o peso dos seus compromissos financeiros e gastos mensais face ao seu rendimento mensal?",{"$nulls":10},{"$f":"+SUM(O36:O39)","v":0}]
[null,-25,null,null,"Superior a 90%",{"$nulls":9},{"$f":"+IF('Teste de Adequação'!$D$30=E36,Perguntas!B36,0)","v":0}]
[null,-15,null,null,"Entre 90% e 75%",{"$nulls":9},{"$f":"+IF('Teste de Adequação'!$D$30=E37,Perguntas!B37,0)","v":0}]
[null,0,null,null,"Entre 75% e 45%",{"$nulls":9},{"$f":"+IF('Teste de Adequação'!$D$30=E38,Perguntas!B38,0)","v":0}]
[null,20,null,null,"Inferior a 45%",{"$nulls":9},{"$f":"+IF('Teste de Adequação'!$D$30=E39,Perguntas!B39,0)","v":0}]
[]
[{"$nulls":3},"2) CONHECIMENTO E EXPERIÊNCIA",{"$nulls":10},{"$f":"+O43+O49+O55+O61+O68+O74","v":0}]
[]
[{"$nulls":3},"a) Qual o seu nível de escolaridade?",{"$nulls":10},{"$f":"+SUM(O44:O47)","v":0}]
[null,0,null,null,"1º ciclo ou inferior",{"$nulls":9},{"$f":"+IF('Teste de Adequação'!$D$35=E44,Perguntas!B44,0)","v":0}]
[null,5,null,null,"Entre o 2º ciclo e o ensino secundário",{"$nulls":9},{"$f":"+IF('Teste de Adequação'!$D$35=E45,Perguntas!B45,0)","v":0}]
[null,10,null,null,"Formação superior em áreas não económico-financeiras ou de gestão",{"$nulls":9},{"$f":"+IF('Teste de Adequação'!$D$35=E46,Perguntas!B46,0)","v":0}]
[null,20,null,null,"Formação superior em áreas económico-financeiras ou de gestão",{"$nulls":9},{"$f":"+IF('Teste de Adequação'!$D$35=E47,Perguntas!B47,0)","v":0}]
[]
[{"$nulls":3},"b) Qual a sua experiência profissional em áreas económico-financeiras ou de gestão?",{"$nulls":10},{"$f":"SUM(O50:O53)","v":0}]
[null,0,null,null,"Nenhuma",{"$nulls":9},{"$f":"+IF('Teste de Adequação'!$D$38=E50,Perguntas!B50,0)","v":0}]
[null,10,null,null,"Até 2 anos",{"$nulls":9},{"$f":"+IF('Teste de Adequação'!$D$38=E51,Perguntas!B51,0)","v":0}]
[null,25,null,null,"Entre 2 e 5 anos",{"$nulls":9},{"$f":"+IF('Teste de Adequação'!$D$38=E52,Perguntas!B52,0)","v":0}]
[null,50,null,null,"Superior a 5 anos",{"$nulls":9},{"$f":"+IF('Teste de Adequação'!$D$38=E53,Perguntas!B53,0)","v":0}]
[]
[{"$nulls":3},"c) Como classificaria a sua experiência e conhecimento nos mercados financeiros?",{"$nulls":10},{"$f":"+SUM(O56:O59)","v":0}]
[null,0,null,null,"Nenhuma",{"$nulls":9},{"$f":"+IF('Teste de Adequação'!$D$41=E56,Perguntas!B56,0)","v":0}]
[null,10,null,null,"Pouca experiência e/ou conhecimentos sobre os riscos associados",{"$nulls":9},{"$f":"+IF('Teste de Adequação'!$D$41=E57,Perguntas!B57,0)","v":0}]
[null,25,null,null,"Alguma experiência e/ou conhecimentos sobre os riscos associados",{"$nulls":9},{"$f":"+IF('Teste de Adequação'!$D$41=E58,Perguntas!B58,0)","v":0}]
[null,50,null,null,"Elevada experiência e/ou conhecimentos sobre os riscos associados",{"$nulls":9},{"$f":"+IF('Teste de Adequação'!$D$41=E59,Perguntas!B59,0)","v":0}]
[]
[{"$nulls":3},"d) Dos seguintes produtos financeiros, quais os que já investiu pelo menos uma vez?",{"$nulls":10},{"$f":"+SUM(O62:O66)","v":0}]
[null,0,null,null,"Instrumentos mercado monetário (DP's, Fundos Tesouraria, Certificados de Aforro)",{"$nulls":9},{"$f":"+IF('Teste de Adequação'!$D$44=E62,Perguntas!B62,0)","v":0}]
[null,5,null,null,"Obrigações, Fundos de Obrigações ou Produtos Estruturados de Capital garantido",{"$nulls":9},{"$f":"+IF('Teste de Adequação'!$D$44=E63,Perguntas!B63,0)","v":0}]
[null,15,null,null,"Fundos Mistos ou Produtos Estrutrados sem capital garantido",{"$nulls":9},{"$f":"+IF('Teste de Adequação'!$D$44=E64,Perguntas!B64,0)","v":0}]
[null,25,null,null,"Acções ou Fundos de Acções",{"$nulls":9},{"$f":"+IF('Teste de Adequação'!$D$44=E65,Perguntas!B65,0)","v":0}]
[null,50,null,null,"Produtos Derivados (warrants,opções, CFD's  ou futuros).",{"$nulls":9},{"$f":"+IF('Teste de Adequação'!$D$44=E66,Perguntas!B66,0)","v":0}]
[]
[{"$nulls":3},"e) Quantas transacções efectua, em média, nos mercados de capitais por ano?",{"$nulls":10},{"$f":"+SUM(O69:O72)","v":0}]
[null,0,null,null,"Nenhuma",{"$nulls":9},{"$f":"+IF('Teste de Adequação'!$D$47=E69,Perguntas!B69,0)","v":0}]
[null,10,null,null,"Menos que 10",{"$nulls":9},{"$f":"+IF('Teste de Adequação'!$D$47=E70,Perguntas!B70,0)","v":0}]
[null,50,null,null,"Entre 10 e 35",{"$nulls":9},{"$f":"+IF('Teste de Adequação'!$D$47=E71,Perguntas!B71,0)","v":0}]
[null,75,null,null,"Mais do que 35",{"$nulls":9},{"$f":"+IF('Teste de Adequação'!$D$47=E72,Perguntas!B72,0)","v":0}]
[]
[{"$nulls":3},"f) Qual o volume das operações com instrumentos financeiros que efectua, em média, por ano?",{"$nulls":10},{"$f":"+SUM(O75:O78)","v":0}]
[null,0,null,null,"Nehuma",{"$nulls":9},{"$f":"+IF('Teste de Adequação'!$D$50=E75,Perguntas!B75,0)","v":0}]
[null,10,null,null,"Até 10.000.000 Kwanzas",{"$nulls":9},{"$f":"+IF('Teste de Adequação'!$D$50=E76,Perguntas!B76,0)","v":0}]
[null,50,null,null,"Entre 10.000.000 e 25.000.000 Kwanzas",{"$nulls":9},{"$f":"+IF('Teste de Adequação'!$D$50=E77,Perguntas!B77,0)","v":0}]
[null,75,null,null,"Superior a 25.000.000 Kwanzas",{"$nulls":9},{"$f":"+IF('Teste de Adequação'!$D$50=E78,Perguntas!B78,0)","v":0}]
[]
[{"$nulls":3},"3) OBJECTIVOS DO INVESTIMENTO",{"$nulls":10},{"$f":"+O82+O88+O94","v":0}]
[]
[{"$nulls":3},"a) Qual o seu objectivo de investimento?",{"$nulls":10},{"$f":"+SUM(O83:O86)","v":0}]
[null,-75,null,null,"Preservação do capital e reduzidos rendimentos",{"$nulls":9},{"$f":"+IF('Teste de Adequação'!$D$55=E83,Perguntas!B83,0)","v":0}]
[null,25,null,null,"Rendimento (baixa probabilidade de perda de capital)",{"$nulls":9},{"$f":"+IF('Teste de Adequação'!$D$55=E84,Perguntas!B84,0)","v":0}]
[null,50,null,null,"Valorização (alguma probabilidade de perda de capital)",{"$nulls":9},{"$f":"+IF('Teste de Adequação'!$D$55=E85,Perguntas!B85,0)","v":0}]
[null,75,null,null,"Especulação ( significativa probabilidade de perda de capital)",{"$nulls":9},{"$f":"+IF('Teste de Adequação'!$D$55=E86,Perguntas!B86,0)","v":0}]
[]
[{"$nulls":3},"b) Qual o seu horizonte temporal previsto para este investimento",{"$nulls":10},{"$f":"+SUM(O89:O92)","v":0}]
[null,-75,null,null,"Até 1 ano",{"$nulls":9},{"$f":"+IF('Teste de Adequação'!$D$58=E89,Perguntas!B89,0)","v":0}]
[null,25,null,null,"De 1 a 3 anos",{"$nulls":9},{"$f":"+IF('Teste de Adequação'!$D$58=E90,Perguntas!B90,0)","v":0}]
[null,50,null,null,"De 3 a 5 anos",{"$nulls":9},{"$f":"+IF('Teste de Adequação'!$D$58=E91,Perguntas!B91,0)","v":0}]
[null,75,null,null,"Superior a 5 anos",{"$nulls":9},{"$f":"+IF('Teste de Adequação'!$D$58=E92,Perguntas!B92,0)","v":0}]
[]
[{"$nulls":3},"c) Refira a sua capacidade de resistência a eventuais períodos de perda de capital",{"$nulls":10},{"$f":"+SUM(O95:O99)","v":0}]
[null,-100,null,null,"Não admite perdas de capital",{"$nulls":9},{"$f":"+IF('Teste de Adequação'!$D$61=E95,Perguntas!B95,0)","v":0}]
[null,25,null,null,"Pouca tolerância a perdas (até 5%)",{"$nulls":9},{"$f":"+IF('Teste de Adequação'!$D$61=E96,Perguntas!B96,0)","v":0}]
[null,50,null,null,"Alguma tolerância a perdas (até 10%)",{"$nulls":9},{"$f":"+IF('Teste de Adequação'!$D$61=E97,Perguntas!B97,0)","v":0}]
[null,75,null,null,"Significativa tolerância a perdas (até 20%)",{"$nulls":9},{"$f":"+IF('Teste de Adequação'!$D$61=E98,Perguntas!B98,0)","v":0}]
[null,100,null,null,"Resistência efectiva a períodos de perda (superiores a 20%)",{"$nulls":9},{"$f":"+IF('Teste de Adequação'!$D$61=E99,Perguntas!B99,0)","v":0}]